bitfinex/quotes_SOLUSD_20260311
["timestamp","ask_amount","ask_price","bid_price","bid_amount"]
[1773241929944,7.58494182,85.94,85.913,3.96105463]
[1773241930139,11.63517474,85.947,85.913,3.96105463]
[1773241931432,3.9882111,85.946,85.913,3.96105463]
[1773241931632,7.58494182,85.93,85.904,3.96105463]
[1773241932027,15.62450703,85.938,85.906,3.96105463]
[1773241932425,11.63572126,85.943,85.911,3.96105463]
[1773241932625,3.9882111,85.948,85.911,3.96105463]
[1773241932626,11.63504036,85.948,85.911,3.96105463]
[1773241933440,1.1455102,85.972,85.91,7.58494182]
[1773241933441,1.1455102,85.983,85.941,3.96105463]
[1773241933644,11.57315292,86.01,85.971,3.96105463]
[1773241933818,11.57315292,86.01,85.98,7.58494182]
[1773241934018,40.6934158,86.009,85.973,3.96105463]
[1773241934441,7.58494182,86.0,85.973,3.96105463]
[1773241934636,3.9882111,86.008,85.973,3.96105463]
[1773241935324,40.6934158,86.009,85.973,3.96105463]
[1773241936331,7.58494182,86.0,85.973,3.96105463]
[1773241936738,7.58494182,85.99,85.964,3.96105463]
[1773241936938,7.58494182,85.98,85.955,3.96105463]
[1773241937338,7.58494182,85.98,85.937,1.16364313]
[1773241937339,7.58494182,85.97,85.943,3.96105463]
[1773241938144,7.58494182,85.96,85.935,2.84]
[1773241938437,11.63345315,85.959,85.93,11.63734491]
[1773241939327,7.58494182,85.95,85.924,3.96105463]
[1773241939524,7.58494182,85.95,85.91,29.10000644]
[1773241939525,7.58494182,85.95,85.921,11.63857548]
[1773241940021,7.58494182,85.95,85.915,3.88774537]
[1773241940219,4.09107996,85.949,85.914,2.84]
[1773241940422,4.09107996,85.939,85.914,2.84]
[1773241940628,4.09107996,85.939,85.914,14.47947296]
[1773241941340,4.09107996,85.939,85.914,2.84]
[1773241941641,7.58494182,85.93,85.914,2.84]
[1773241942625,11.63445686,85.952,85.92,7.58494182]
[1773241942826,11.63445686,85.952,85.921,3.88774537]
[1773241943639,4.09107996,85.949,85.915,11.63941104]
[1773241943842,4.09107996,85.949,85.916,3.88774537]
[1773241944744,4.09107996,85.949,85.918,3.88774537]
[1773241944745,11.63494205,85.948,85.918,3.88774537]
[1773241946931,11.63494205,85.948,85.92,3.88774537]
[1773241947231,11.63494205,85.948,85.921,3.88774537]
[1773241947428,1.1455102,85.977,85.921,3.88774537]
[1773241947429,4.09107996,86.002,85.941,3.88774537]
[1773241947642,4.09107996,86.002,85.971,3.88774537]
[1773241947643,11.62764223,86.002,85.971,3.88774537]
[1773241947833,7.58494182,86.01,85.971,3.88774537]
[1773241948037,11.62871828,85.994,85.971,3.88774537]
[1773241948238,3.69383402,86.038,85.971,3.88774537]
[1773241948550,3.69383402,86.038,85.942,4.02357543]
[1773241948551,11.62263624,86.039,86.001,3.88774537]
[1773241948873,11.62263624,86.039,85.954,4.82477569]
[1773241948874,7.58494182,86.02,85.991,2.84]
[1773241949160,11.67602178,86.02,85.987,3.88774537]
[1773241949644,7.58494182,86.02,85.987,3.88774537]
[1773241949955,7.58494182,86.02,85.991,3.88774537]
[1773241950355,15.71506722,86.029,85.992,15.51673411]
[1773241950534,15.71506722,86.029,85.993,3.88774537]
[1773241950732,7.58494182,86.02,85.993,3.88774537]
[1773241950953,4.09107996,86.028,85.993,3.88774537]
[1773241951139,4.09107996,86.009,85.97,7.58494182]
[1773241951332,11.62398726,86.029,85.991,3.88774537]
[1773241952263,11.62398726,86.029,85.993,3.88774537]
[1773241953153,7.58494182,86.02,85.993,3.88774537]
[1773241953332,11.62398726,86.029,85.993,3.88774537]
[1773241953534,7.58494182,86.02,85.993,3.88774537]
[1773241953742,4.09107996,86.009,85.981,2.84]
[1773241953948,4.09107996,86.019,85.983,3.88774537]
[1773241954353,4.09107996,86.019,85.985,3.88774537]
[1773241954553,11.62345911,86.033,86.001,3.88774537]
[1773241954859,7.58494182,86.03,86.001,3.88774537]
[1773241955457,7.58494182,86.01,85.98,7.58494182]
[1773241955658,4.09107996,86.009,85.977,3.88774537]
[1773241955954,7.58494182,86.0,85.97,7.58494182]
[1773241956363,7.58494182,86.0,85.97,19.21689842]
[1773241956537,7.58494182,86.01,85.981,3.88774537]
[1773241956742,19.21150785,86.01,85.981,3.88774537]
[1773241957152,4.09107996,86.009,85.971,3.88774537]
[1773241957556,4.09107996,86.009,85.964,2.84]
[1773241957557,4.09107996,85.999,85.964,2.84]
[1773241957856,7.58494182,85.98,85.953,3.88774537]
[1773241958056,7.58494182,85.97,85.94,3.88774537]
[1773241958248,7.58494182,85.97,85.931,2.84]
[1773241958450,7.58494182,85.97,85.897,1.16418501]
[1773241958451,4.09107996,85.968,85.883,29.10931815]
[1773241958652,104.68889948,85.969,85.835,46.60076338]
[1773241958653,4.09107996,85.909,85.878,11.64442581]
[1773241958956,7.58494182,85.9,85.872,11.6451999]
[1773241959161,4.09107996,85.899,85.861,11.64673134]
[1773241959367,7.58494182,85.9,85.861,11.64673134]
[1773241959563,7.58494182,85.9,85.828,47.76972301]
[1773241959564,4.09107996,85.869,85.828,1.16512093]
[1773241959746,4.09107996,85.88,85.85,7.58494182]
[1773241959939,3.90726103,85.859,85.812,2.86]
[1773241960146,4.82477569,85.928,85.812,2.86]
[1773241960147,3.90726103,85.894,85.85,7.58494182]
[1773241960443,7.58494182,85.87,85.831,4.17266653]
[1773241960648,7.58494182,85.86,85.831,4.17266653]
[1773241960864,7.58494182,85.87,85.831,4.17266653]
[1773241961063,46.55999974,85.911,85.823,40.78160865]
[1773241961064,3.90726103,85.889,85.851,4.17266653]
[1773241961453,7.58494182,85.88,85.851,4.17266653]
[1773241961754,3.90726103,85.889,85.851,4.17266653]
[1773241962066,3.90726103,85.889,85.823,133.99671415]
[1773241962067,3.90726103,85.879,85.841,7.03266653]
[1773241962468,7.58494182,85.88,85.843,4.17266653]
[1773241963366,7.58494182,85.89,85.851,4.17266653]
[1773241963564,7.58494182,85.9,85.861,4.17266653]
[1773241963864,3.90726103,85.899,85.861,4.17266653]
[1773241964070,7.58494182,85.9,85.861,4.17266653]
[1773241964561,7.58494182,85.91,85.871,4.17266653]
[1773241964776,3.90726103,85.919,85.881,4.17266653]
[1773241964968,3.90726103,85.919,85.89,7.58494182]
[1773241965149,3.90726103,85.929,85.891,4.17266653]
[1773241965343,3.90726103,85.929,85.9,7.58494182]
[1773241965550,3.90726103,85.939,85.901,4.17266653]
[1773241965854,7.58494182,85.91,85.878,4.17266653]
[1773241966057,7.58494182,85.91,85.88,7.58494182]
[1773241966753,3.90726103,85.919,85.882,4.17266653]
[1773241966947,3.90726103,85.919,85.87,2.88]
[1773241966948,3.90726103,85.909,85.87,7.05266653]
[1773241967154,3.90726103,85.909,85.88,7.58494182]
[1773241967370,11.63900463,85.918,85.881,4.17266653]
[1773241967568,15.54626566,85.918,85.881,4.17266653]
[1773241967767,3.90726103,85.917,85.881,4.17266653]
[1773241968750,7.58494182,85.91,85.881,4.17266653]
[1773241968950,7.58494182,85.91,85.882,11.64388346]
[1773241969346,3.90726103,85.889,85.848,11.64849501]
[1773241969547,87.29456677,85.916,85.836,4.17266653]
[1773241969548,7.58494182,85.86,85.836,4.17266653]
[1773241969749,7.58494182,85.86,85.835,11.65025921]
[1773241969750,3.90726103,85.877,85.835,11.65025921]
[1773241969961,7.58494182,85.89,85.835,11.65025921]
[1773241969962,7.58494182,85.86,85.835,11.65025921]
[1773241970170,7.58494182,85.86,85.825,4.08076077]
[1773241970354,7.58494182,85.85,85.825,4.08076077]
[1773241970953,7.58494182,85.84,85.816,11.65280695]
[1773241971285,3.85718661,85.829,85.784,11.6571378]
[1773241971450,40.76925764,85.849,85.788,11.65664195]
[1773241971451,7.58494182,85.81,85.788,11.65664195]
[1773241971649,3.85718661,85.799,85.77,11.65895679]
[1773241971868,3.85718661,85.799,85.75,5.34694152]
[1773241971869,7.58494182,85.8,85.762,4.08076077]
[1773241972367,7.58494182,85.79,85.762,4.08076077]
[1773241972881,7.58494182,85.79,85.763,11.66003987]
[1773241973575,7.58494182,85.78,85.762,4.08076077]
[1773241973775,19.24133661,85.79,85.762,4.08076077]
[1773241974262,3.85718661,85.779,85.75,0.1]
[1773241974654,3.85718661,85.779,85.685,46.68226013]
[1773241974655,7.58494182,85.76,85.717,4.08076077]
[1773241974957,7.58494182,85.76,85.723,4.08076077]
[1773241975161,7.58494182,85.75,85.723,4.08076077]
[1773241975372,3.85718661,85.729,85.697,1e-08]
[1773241975555,3.85718661,85.734,85.697,1e-08]
[1773241975754,7.58494182,85.73,85.698,4.08076077]
[1773241975974,7.58494182,85.71,85.697,1e-08]
[1773241976176,7.58494182,85.71,85.624,46.71562715]
[1773241976177,3.85718661,85.709,85.67,4.08076077]
[1773241976367,7.58494182,85.75,85.652,4.08076077]
[1773241976368,7.58494182,85.68,85.652,4.08076077]
[1773241976556,3.85718661,85.695,85.652,4.08076077]
[1773241976864,3.85718661,85.695,85.653,11.6750143]
[1773241976865,7.58494182,85.68,85.653,11.6750143]
[1773241977065,7.58494182,85.68,85.654,4.08076077]
[1773241977376,7.58494182,85.68,85.642,29.19121035]
[1773241977377,7.58494182,85.68,85.642,11.67651386]
[1773241977576,7.58494182,85.68,85.651,4.08076077]
[1773241977870,7.58494182,85.7,85.661,4.08076077]
[1773241978174,7.58494182,85.68,85.652,6.96076077]
[1773241978366,3.85718661,85.692,85.652,4.08076077]
[1773241978674,7.58494182,85.7,85.661,4.08076077]
[1773241978872,7.58494182,85.7,85.671,4.08076077]
[1773241979068,19.25357796,85.7,85.671,4.08076077]
[1773241979266,7.58494182,85.7,85.671,4.08076077]
[1773241979779,7.58494182,85.7,85.673,4.08076077]
[1773241980077,7.58494182,85.71,85.673,4.08076077]
[1773241980467,7.58494182,85.71,85.648,46.7025533]
[1773241980468,7.58494182,85.71,85.675,4.08076077]
[1773241980778,7.58494182,85.71,85.671,2.9]
[1773241980779,7.58494182,85.71,85.681,4.08076077]
[1773241980980,7.58494182,85.72,85.683,4.08076077]
[1773241981181,7.58494182,85.71,85.683,4.08076077]
[1773241981355,11.27877584,85.75,85.683,4.08076077]
[1773241981356,7.58494182,85.72,85.683,4.08076077]
[1773241981562,7.58494182,85.73,85.691,4.08076077]
[1773241981860,7.58494182,85.73,85.7,7.58494182]
[1773241982060,7.58494182,85.72,85.691,4.08076077]
[1773241982262,11.66452816,85.73,85.669,4.08076077]
[1773241982263,3.85718661,85.709,85.669,4.08076077]
[1773241982453,3.85718661,85.709,85.671,4.08076077]
[1773241982865,3.85718661,85.72,85.68,7.58494182]
[1773241983072,7.58494182,85.72,85.683,4.08076077]
[1773241983276,35.42789042,85.731,85.691,4.08076077]
[1773241983461,7.58494182,85.71,85.683,4.08076077]
[1773241983784,7.58494182,85.71,85.648,93.40556276]
[1773241983785,3.85718661,85.73,85.7,7.58494182]
[1773241983986,7.58494182,85.73,85.691,4.08076077]
[1773241984197,7.58494182,85.73,85.701,4.08076077]
[1773241984364,7.58494182,85.72,85.701,4.08076077]
[1773241984566,7.58494182,85.72,85.667,1.16731063]
[1773241984567,3.85718661,85.721,85.668,4.08076077]
[1773241984781,3.85718661,85.721,85.671,4.08076077]
[1773241985092,19.25219993,85.71,85.673,4.08076077]
[1773241985266,7.58494182,85.71,85.673,4.08076077]
[1773241985461,11.66738615,85.709,85.673,4.08076077]
[1773241986373,3.85718661,85.728,85.69,7.58494182]
[1773241986573,46.62834345,85.785,85.692,4.08076077]
[1773241986792,7.58494182,85.73,85.7,11.66570259]
[1773241986964,3.85718661,85.741,85.7,4.08076077]
[1773241987164,7.58494182,85.72,85.692,11.66970078]
[1773241987387,19.25084093,85.72,85.692,15.75046155]
[1773241987591,19.25084093,85.72,85.692,4.08076077]
[1773241987776,19.25084093,85.72,85.692,15.75046155]
[1773241987978,3.85718661,85.727,85.693,4.08076077]
[1773241988169,7.58494182,85.74,85.71,7.58494182]
[1773241988379,44.66922965,85.759,85.711,4.08076077]
[1773241988672,3.85718661,85.758,85.721,4.08076077]
[1773241988860,40.81204304,85.759,85.705,4.08076077]
[1773241988861,7.58494182,85.74,85.705,4.08076077]
[1773241989060,112.12685242,85.766,85.692,40.84395275]
[1773241989061,11.66466423,85.729,85.692,11.66970078]
[1773241989277,7.58494182,85.75,85.711,4.08076077]
[1773241989482,3.85718661,85.753,85.72,7.58494182]
[1773241989682,7.61951688,85.75,85.721,4.08076077]
[1773241989990,18.84912525,85.766,85.731,4.08076077]
[1773241990285,7.61951688,85.76,85.731,4.08076077]
[1773241990585,18.84912525,85.766,85.731,3.94969311]
[1773241991284,11.66058372,85.759,85.731,15.61396147]
[1773241991582,7.18938092,85.766,85.74,7.61951688]
[1773241991890,11.65976797,85.765,85.731,11.66426836]
[1773241992071,11.65976797,85.765,85.72,29.16446172]
[1773241992072,11.65976797,85.765,85.701,70.01085168]
[1773241992386,7.18938092,85.766,85.74,7.61951688]
[1773241992781,18.84904775,85.766,85.738,4.08076077]
[1773241993284,7.18938092,85.766,85.743,4.08076077]
[1773241993784,7.61951688,85.78,85.743,4.08076077]
[1773241994083,7.61951688,85.78,85.742,11.66289566]
[1773241994271,7.61951688,85.78,85.751,4.08076077]
[1773241994884,11.47670349,85.77,85.731,2.9]
[1773241995088,11.47670349,85.77,85.732,4.08076077]
[1773241995291,11.47670349,85.77,85.74,7.61951688]
[1773241995589,11.65922419,85.769,85.735,11.66384363]
[1773241996193,11.65922419,85.769,85.736,4.08076077]
[1773241996385,3.85718661,85.768,85.736,4.08076077]
[1773241996770,11.65922419,85.769,85.736,4.08076077]
[1773241996971,11.65800088,85.778,85.741,4.08076077]
[1773241997379,11.47670349,85.77,85.733,40.82442]
[1773241997578,23.13592292,85.77,85.736,4.08076077]
[1773241997791,23.13592292,85.77,85.736,2.58076077]
[1773241998088,3.85718661,85.769,85.731,2.9]
[1773241998294,3.85718661,85.769,85.731,14.56437638]
[1773241998471,3.85718661,85.769,85.74,7.61951688]
[1773241998671,11.65921943,85.77,85.74,7.61951688]
[1773241998873,19.27873631,85.77,85.74,7.61951688]
[1773241999179,11.47670349,85.79,85.75,7.61951688]
[1773241999381,46.61715546,85.806,85.689,29.17520572]
[1773241999382,3.85718661,85.759,85.689,29.17520572]
[1773241999695,7.61951688,85.75,85.71,7.61951688]
[1773241999877,7.61951688,85.75,85.711,4.03054766]
[1773242000097,4.18837221,85.729,85.69,14.55006454]
[1773242000290,11.80788909,85.74,85.7,11.65006454]
[1773242000597,4.18837221,85.739,85.701,4.03054766]
[1773242000795,4.18837221,85.729,85.69,11.65006454]
[1773242001001,4.18837221,85.729,85.69,4.03054766]
[1773242001297,4.18837221,85.729,85.69,11.65006454]
[1773242001491,7.61951688,85.72,85.69,11.65006454]
[1773242001700,11.66602503,85.719,85.691,11.66983697]
[1773242002813,11.66602503,85.719,85.655,1.16747416]
[1773242002814,4.18837221,85.699,85.658,4.03054766]
[1773242003005,7.61951688,85.71,85.68,7.61951688]
[1773242003297,7.61951688,85.71,85.671,4.03054766]
[1773242003597,7.61951688,85.7,85.671,4.03054766]
[1773242003807,4.18837221,85.698,85.654,4.03054766]
[1773242003975,7.61951688,85.69,85.651,4.03054766]
[1773242004184,7.61951688,85.69,85.66,7.61951688]
[1773242004502,11.80788909,85.68,85.64,11.65006454]
[1773242004681,7.61951688,85.66,85.634,4.03054766]
[1773242004886,7.61951688,85.66,85.624,4.03054766]
[1773242005084,4.18837221,85.659,85.624,4.03054766]
[1773242005284,4.18837221,85.659,85.628,11.67840742]
[1773242005488,7.61951688,85.65,85.622,11.67917462]
[1773242005689,11.67460717,85.656,85.631,11.67796285]
[1773242005885,11.67283381,85.669,85.634,4.03054766]
[1773242006179,11.67283381,85.669,85.633,11.67774105]
[1773242006180,29.17220938,85.698,85.651,4.03054766]
[1773242006502,4.18837221,85.689,85.651,4.03054766]
[1773242006686,4.18837221,85.659,85.62,4.03054766]
[1773242007002,4.18837221,85.669,85.634,4.03054766]
[1773242007777,11.67297007,85.668,85.635,11.67746832]
[1773242008199,7.61951688,85.65,85.608,4.03054766]
[1773242008399,7.61951688,85.65,85.611,4.03054766]
[1773242008582,4.18837221,85.659,85.621,4.03054766]
[1773242009481,4.18837221,85.659,85.601,42.05558345]
[1773242009482,7.61951688,85.65,85.611,4.03054766]
[1773242009699,11.80788909,85.65,85.611,4.03054766]
[1773242009896,11.67569587,85.648,85.612,11.68060552]
[1773242010197,4.18837221,85.647,85.612,15.71115318]
[1773242010404,4.18837221,85.647,85.613,4.03054766]
[1773242010787,4.18837221,85.658,85.62,7.61951688]
[1773242010979,4.18837221,85.656,85.62,7.61951688]
[1773242011174,1.1664256,85.689,85.641,4.03054766]
[1773242011175,7.61951688,85.68,85.641,4.03054766]
[1773242011399,15.85861775,85.688,85.651,4.03054766]
[1773242011608,4.18837221,85.709,85.67,7.61951688]
[1773242011899,4.18837221,85.699,85.671,11.67256131]
[1773242012091,4.18837221,85.708,85.666,11.67317248]
[1773242012293,7.61951688,85.7,85.661,4.03054766]
[1773242012496,40.83585153,85.709,85.67,11.65006454]
[1773242012797,4.18837221,85.708,85.67,11.65006454]
[1773242013000,4.18837221,85.708,85.67,4.03054766]
[1773242013302,4.18837221,85.708,85.67,11.65006454]
[1773242013777,4.18837221,85.707,85.671,4.03054766]
[1773242014100,4.0664256,85.735,85.69,7.61951688]
[1773242014101,15.85466944,85.717,85.69,7.61951688]
[1773242014306,4.18837221,85.716,85.673,4.03054766]
[1773242014483,4.18837221,85.716,85.672,40.85348771]
[1773242014484,11.66629723,85.717,85.69,7.61951688]
[1773242014891,11.66629723,85.717,85.68,7.61951688]
[1773242014892,4.18837221,85.716,85.68,7.61951688]
[1773242015395,4.18837221,85.716,85.681,4.03054766]
[1773242015997,15.85494165,85.715,85.682,11.67106276]
[1773242016386,4.18837221,85.723,85.69,7.61951688]
[1773242016707,4.18837221,85.734,85.7,7.61951688]
[1773242016900,15.85241799,85.734,85.7,7.61951688]
[1773242017307,11.6616775,85.751,85.72,7.61951688]
[1773242017487,7.61951688,85.75,85.72,7.61951688]
[1773242017799,4.18837221,85.739,85.705,2.9]
[1773242017980,4.18837221,85.739,85.71,7.61951688]
[1773242018182,4.18837221,85.749,85.72,7.61951688]
[1773242018381,11.80788909,85.76,85.721,4.03054766]
[1773242018588,23.46843288,85.76,85.721,4.03054766]
[1773242018890,4.18837221,85.76,85.73,7.61951688]
[1773242019092,11.65922419,85.769,85.73,7.61951688]
[1773242019280,11.80788909,85.77,85.74,7.61951688]
[1773242019482,23.46698485,85.77,85.731,4.03054766]
[1773242019679,7.61951688,85.76,85.731,4.03054766]
[1773242019884,4.18837221,85.769,85.74,7.61951688]
[1773242020085,4.18837221,85.769,85.733,4.04376787]
[1773242020501,15.8477191,85.769,85.74,7.61951688]
[1773242020694,15.8477191,85.769,85.733,4.04376787]
[1773242021686,15.8477191,85.769,85.74,7.61951688]
[1773242021886,4.18837221,85.769,85.734,11.66398395]
[1773242022194,4.08460327,85.767,85.734,11.66398395]
[1773242022897,4.08460327,85.767,85.735,4.04376787]
[1773242023208,11.65813679,85.777,85.75,11.66328475]
[1773242023384,11.65813679,85.777,85.74,11.66328475]
[1773242023901,11.65813679,85.777,85.741,4.04376787]
[1773242024311,7.17840259,85.778,85.75,7.61951688]
[1773242024491,7.17840259,85.778,85.751,4.04376787]
[1773242025697,4.08460327,85.799,85.77,7.61951688]
[1773242025896,4.08460327,85.789,85.752,2.9]
[1773242026085,4.08460327,85.789,85.753,4.04376787]
[1773242026287,4.08460327,85.789,85.742,40.82013481]
[1773242026288,7.61951688,85.77,85.743,11.66275964]
[1773242026493,4.08460327,85.779,85.744,4.04376787]
[1773242026789,7.61951688,85.77,85.744,4.04376787]
[1773242027109,7.61951688,85.77,85.737,2.9]
[1773242027110,4.08460327,85.759,85.737,2.9]
[1773242027406,4.08460327,85.759,85.725,4.04376787]
[1773242027600,4.08460327,85.759,85.73,7.61951688]
[1773242027796,4.08460327,85.749,85.719,2.9]
[1773242027995,7.61951688,85.76,85.721,4.04376787]
[1773242028197,11.66058372,85.759,85.721,4.04376787]
[1773242028400,4.08460327,85.758,85.723,4.04376787]
[1773242028795,7.61951688,85.76,85.724,4.04376787]
[1773242029105,4.08460327,85.759,85.723,4.04376787]
[1773242029403,4.08460327,85.759,85.71,7.61951688]
[1773242029404,4.08460327,85.749,85.71,7.61951688]
[1773242029884,4.16333552,85.739,85.709,11.66729932]
[1773242030287,11.66343978,85.738,85.709,11.66729932]
[1773242030689,4.16333552,85.749,85.711,4.14590533]
[1773242030896,4.16333552,85.748,85.711,4.14590533]
[1773242032312,4.16333552,85.737,85.701,4.14590533]
[1773242032785,4.16333552,85.737,85.702,11.66833912]
[1773242032989,4.16333552,85.729,85.701,11.66847528]
[1773242033589,11.7828524,85.75,85.711,4.14590533]
[1773242033889,11.66223231,85.747,85.711,4.14590533]
[1773242034084,15.82527909,85.749,85.72,7.61951688]
[1773242034492,15.82527909,85.749,85.721,11.66575284]
[1773242034694,4.16333552,85.749,85.721,11.66575284]
[1773242035005,4.16333552,85.768,85.731,4.14590533]
[1773242035211,11.65949607,85.767,85.731,4.14590533]
[1773242035794,7.61951688,85.76,85.731,4.14590533]
[1773242036198,4.16333552,85.766,85.731,4.14590533]
[1773242036588,4.16333552,85.764,85.732,11.66425605]
[1773242037201,4.16333552,85.764,85.733,4.14590533]
[1773242038817,11.66003987,85.763,85.734,11.66398395]
[1773242039198,11.66003987,85.763,85.73,7.61951688]
[1773242039199,4.16333552,85.759,85.73,11.66448251]
[1773242039402,4.16333552,85.759,85.719,2.9]
[1773242039600,4.16333552,85.759,85.721,4.14590533]
[1773242040014,4.16333552,85.759,85.73,7.61951688]
[1773242040319,1.1664256,85.779,85.72,40.83061129]
[1773242040320,4.16333552,85.794,85.751,4.14590533]
[1773242040496,4.16333552,85.794,85.761,4.14590533]
[1773242040915,7.61951688,85.79,85.762,11.66017583]
[1773242041120,4.16333552,85.792,85.762,11.66017583]
[1773242041419,4.16333552,85.789,85.76,7.61951688]
[1773242041714,4.16333552,85.789,85.76,11.76542221]
[1773242041900,15.81929812,85.793,85.76,11.76542221]
[1773242042106,15.81929812,85.793,85.759,7.04590533]
[1773242042107,4.16333552,85.789,85.759,7.04590533]
[1773242042303,4.16333552,85.789,85.759,2.9]
[1773242042612,4.16333552,85.779,85.742,2.9]
[1773242042819,4.16333552,85.777,85.741,4.14590533]
[1773242043132,4.16333552,85.796,85.76,7.61951688]
[1773242043419,4.16333552,85.809,85.761,4.14590533]
[1773242043802,4.16333552,85.799,85.761,4.14590533]
[1773242044396,4.16333552,85.799,85.76,7.61951688]
[1773242045126,4.16333552,85.809,85.78,7.61951688]
[1773242045472,4.16333552,85.815,85.781,4.14590533]
[1773242045606,4.16333552,85.809,85.773,2.9]
[1773242046614,4.16333552,85.799,85.773,2.55116937]
[1773242047007,4.16333552,85.797,85.773,2.55116937]
[1773242047611,4.16333552,85.797,85.75,4.14590533]
[1773242047829,4.16333552,85.779,85.74,7.61951688]
[1773242048126,4.16333552,85.769,85.732,11.66425605]
[1773242048323,4.16333552,85.769,85.732,14.56425605]
[1773242048710,4.16333552,85.769,85.73,7.61951688]
[1773242048905,4.16333552,85.759,85.72,7.61951688]
[1773242049105,2.9,85.791,85.71,7.61951688]
[1773242049106,4.16333552,85.749,85.71,7.61951688]
[1773242049314,4.16333552,85.739,85.71,7.61951688]
[1773242049732,4.16333552,85.729,85.7,7.61951688]
[1773242050231,4.16333552,85.737,85.683,4.14590533]
[1773242050422,4.16333552,85.729,85.682,11.67106276]
[1773242050627,4.16333552,85.729,85.7,7.61951688]
[1773242050827,4.16333552,85.729,85.69,7.61951688]
[1773242051024,11.66480029,85.728,85.7,7.61951688]
[1773242051227,4.16333552,85.727,85.683,4.14590533]
[1773242051537,4.16333552,85.727,85.7,7.61951688]
[1773242051728,4.16333552,85.727,85.7,7.62326641]
[1773242052433,11.66507244,85.726,85.7,7.62326641]
[1773242052633,14.43182053,85.89,85.71,7.62326641]
[1773242052634,4.16333552,85.733,85.71,7.62326641]
[1773242054017,4.16333552,85.748,85.72,7.62326641]
[1773242054230,4.16333552,85.758,85.73,7.62326641]
[1773242054413,11.66085567,85.757,85.74,7.62326641]
[1773242054934,15.82249255,85.77,85.741,11.66303168]
[1773242055120,15.81984159,85.789,85.76,7.62326641]
[1773242055319,4.16333552,85.788,85.76,7.62326641]
[1773242055518,4.16333552,85.788,85.75,11.76917174]
[1773242056414,4.16333552,85.786,85.751,11.66167158]
[1773242057209,4.16333552,85.786,85.76,7.62326641]
[1773242057415,4.16333552,85.786,85.754,2.9]
[1773242057610,4.16333552,85.786,85.76,7.62326641]
[1773242057932,29.13457496,85.809,85.761,4.14590533]
[1773242058429,40.78836418,85.809,85.771,11.65895232]
[1773242058625,40.78836418,85.809,85.771,15.80485765]
[1773242058934,11.65378922,85.809,85.772,4.14590533]
[1773242059233,40.78826229,85.809,85.761,4.14590533]
[1773242059638,7.62326641,85.8,85.761,4.14590533]
[1773242059836,3.75111866,85.799,85.761,4.14590533]
[1773242060022,3.75111866,85.799,85.77,7.62326641]
[1773242060331,44.53938095,85.809,85.772,11.65881639]
[1773242060639,3.75111866,85.808,85.772,11.65881639]
[1773242061023,3.75111866,85.799,85.762,15.42576881]
[1773242061226,3.75111866,85.799,85.762,11.66017583]
[1773242062218,7.62326641,85.79,85.758,2.88]
[1773242062424,7.62326641,85.79,85.749,3.76559298]
[1773242062425,3.75111866,85.779,85.74,10.50326641]
[1773242062635,3.75111866,85.779,85.75,7.62326641]
[1773242063735,3.75111866,85.779,85.742,3.76559298]
[1773242064037,3.75111866,85.779,85.75,7.62326641]
[1773242064421,11.65800088,85.778,85.75,19.28496317]
[1773242064621,15.40911954,85.778,85.745,11.66235882]
[1773242064921,15.40911954,85.778,85.75,7.62326641]
[1773242064922,3.75111866,85.777,85.75,7.62326641]
[1773242065237,3.75111866,85.777,85.731,3.76559298]
[1773242065445,3.75111866,85.777,85.74,7.62326641]
[1773242065924,40.80300309,85.778,85.75,11.38885939]
[1773242065925,11.65800088,85.778,85.75,11.38885939]
[1773242066122,11.65800088,85.778,85.74,11.38885939]
[1773242066123,3.75111866,85.777,85.74,11.38885939]
[1773242066325,3.75111866,85.777,85.75,7.62326641]
[1773242066624,3.75111866,85.777,85.751,11.66167158]
[1773242066940,3.75111866,85.787,85.76,7.62326641]
[1773242067540,3.75111866,85.797,85.761,3.76559298]
[1773242068138,3.75111866,85.797,85.76,7.62326641]
[1773242068139,11.65420266,85.806,85.771,3.76559298]
[1773242068344,11.65420266,85.806,85.78,3.76559298]
[1773242068640,3.75111866,85.799,85.767,2.88]
[1773242069233,3.75111866,85.799,85.76,7.62326641]
[1773242070746,3.75111866,85.789,85.751,3.76559298]
[1773242070929,3.75111866,85.789,85.76,7.62326641]
[1773242071422,3.75111866,85.789,85.752,3.76559298]
[1773242071621,3.75111866,85.789,85.75,7.62326641]
[1773242071622,3.75111866,85.789,85.75,19.28496774]
[1773242072352,3.75111866,85.789,85.751,3.76559298]
[1773242072845,11.65664195,85.788,85.76,11.38885939]
[1773242073055,11.65664195,85.788,85.77,7.62326641]
[1773242073236,11.65664195,85.788,85.761,3.76559298]
[1773242074450,3.75111866,85.799,85.771,3.76559298]
[1773242074451,11.65541918,85.797,85.771,3.76559298]
[1773242074761,3.75111866,85.796,85.762,3.76559298]
[1773242075048,11.65569089,85.795,85.771,3.76559298]
[1773242075555,3.75111866,85.794,85.76,7.62326641]
[1773242075870,3.75111866,85.794,85.761,3.76559298]
[1773242076948,11.6559626,85.793,85.762,15.42576881]
[1773242077146,11.6559626,85.793,85.77,7.62326641]
[1773242078452,3.75111866,85.837,85.781,3.76559298]
[1773242078658,7.62326641,85.82,85.781,3.76559298]